bitfinex/quotes_BTCUSD_20251015
["timestamp","ask_amount","ask_price","bid_price","bid_amount"]
[1760487460749,5.75127637,113050.0,113040.0,0.00314399]
[1760487462212,1.13908437,113050.0,113040.0,0.00314399]
[1760487462629,5.75127637,113050.0,113040.0,0.00314399]
[1760487463090,1.16269837,113050.0,113040.0,0.00314399]
[1760487463235,1.13908437,113050.0,113040.0,0.00314399]
[1760487463458,5.81734445,113050.0,113040.0,0.00314399]
[1760487463647,5.1416888,113040.0,113030.0,0.1]
[1760487463875,5.18511211,113040.0,113030.0,0.1]
[1760487464288,5.21173427,113040.0,113030.0,0.1]
[1760487464492,5.27719887,113040.0,113030.0,0.1]
[1760487464694,5.27819887,113040.0,113030.0,0.1]
[1760487465164,0.68962087,113040.0,113030.0,0.1]
[1760487465362,5.27819887,113040.0,113030.0,0.1]
[1760487466239,5.77819887,113040.0,113030.0,0.1]
[1760487466407,1.18962087,113040.0,113030.0,0.1]
[1760487466615,5.77819887,113040.0,113030.0,0.1]
[1760487468031,5.75937067,113040.0,113030.0,0.11]
[1760487468207,5.75937067,113040.0,113030.0,0.1]
[1760487468559,1.17079267,113040.0,113030.0,0.1]
[1760487468770,5.75937067,113040.0,113030.0,0.1]
[1760487468968,5.65772431,113040.0,113030.0,0.1]
[1760487469167,5.65772431,113040.0,113030.0,0.28751714]
[1760487469454,5.65772431,113040.0,113030.0,0.11057297]
[1760487469648,5.30952594,113040.0,113030.0,0.11057297]
[1760487469925,5.64952594,113040.0,113030.0,0.28751714]
[1760487470702,5.63312868,113040.0,113030.0,0.28751714]
[1760487471834,5.63312868,113040.0,113030.0,0.11057297]
[1760487472708,5.63312868,113040.0,113030.0,0.28751714]
[1760487473842,5.63312868,113040.0,113030.0,0.11057297]
[1760487474030,5.63312868,113040.0,113030.0,0.28751714]
[1760487475405,0.501,113040.0,113030.0,0.28751714]
[1760487475834,0.841,113040.0,113030.0,0.28751714]
[1760487476369,0.84,113040.0,113030.0,0.28751714]
[1760487478425,1.01692852,113040.0,113030.0,0.11057297]
[1760487478630,5.60550652,113040.0,113030.0,0.10057297]
[1760487478840,5.63212469,113040.0,113030.0,0.10057297]
[1760487479401,1.04354669,113040.0,113030.0,0.27751714]
[1760487479603,1.04354669,113040.0,113030.0,0.10057297]
[1760487479790,5.63212469,113040.0,113030.0,0.27751714]
[1760487480490,5.63312469,113040.0,113030.0,0.27751714]
[1760487480691,1.04454669,113040.0,113030.0,0.27751714]
[1760487481017,0.86761817,113040.0,113030.0,0.27751714]
[1760487481392,1.04454669,113040.0,113030.0,0.27751714]
[1760487484658,0.86761817,113040.0,113030.0,0.27751714]
[1760487484864,1.04454669,113040.0,113030.0,0.27751714]
[1760487485486,0.86761817,113040.0,113030.0,0.27751714]
[1760487485747,0.841,113040.0,113030.0,0.27751714]
[1760487486549,0.84,113040.0,113030.0,0.27751714]
[1760487490242,0.84,113040.0,113030.0,0.27251714]
[1760487490899,0.5,113040.0,113030.0,0.27251714]
[1760487491336,0.84,113040.0,113030.0,0.27251714]
[1760487491537,4.988e-05,113050.0,113040.0,0.17692852]
[1760487491734,4.988e-05,113050.0,113040.0,0.19462137]
[1760487491940,4.988e-05,113050.0,113040.0,0.17692852]
[1760487492142,4.988e-05,113050.0,113040.0,0.19462137]
[1760487492938,4.988e-05,113050.0,113040.0,0.30582137]
[1760487493156,4.988e-05,113050.0,113040.0,0.17692852]
[1760487493323,4.988e-05,113050.0,113040.0,0.19462137]
[1760487493893,4.988e-05,113050.0,113040.0,0.19562137]
[1760487494397,4.988e-05,113050.0,113040.0,0.17792852]
[1760487501859,0.34004988,113050.0,113040.0,0.17792852]
[1760487502287,0.34004988,113050.0,113040.0,0.17692852]
[1760487502939,0.51711755,113050.0,113040.0,0.001]
[1760487503154,0.51711755,113050.0,113030.0,0.27251714]
[1760487503352,0.5437301,113050.0,113040.0,0.17692852]
[1760487503640,0.5437301,113050.0,113040.0,0.001]
[1760487503852,0.5437301,113050.0,113040.0,0.17692852]
[1760487504696,0.51711755,113050.0,113040.0,0.17692852]
[1760487505789,4.988e-05,113050.0,113040.0,0.19462137]
[1760487509289,4.988e-05,113050.0,113040.0,0.17692852]
[1760487509509,4.988e-05,113050.0,113040.0,0.19462137]
[1760487510570,4.988e-05,113050.0,113040.0,0.19562137]
[1760487510800,4.988e-05,113050.0,113040.0,0.17792852]
[1760487512077,4.988e-05,113050.0,113040.0,0.17692852]
[1760487512597,4.988e-05,113050.0,113040.0,0.19462137]
[1760487513481,4.988e-05,113050.0,113040.0,0.17692852]
[1760487514309,0.51696275,113050.0,113040.0,0.17692852]
[1760487514944,0.53333978,113050.0,113040.0,0.17692852]
[1760487516406,0.17692852,113040.0,113030.0,0.27251714]
[1760487517927,4.588578,113040.0,113030.0,0.27251714]
[1760487518341,0.17692852,113040.0,113030.0,0.27251714]
[1760487519193,0.17692852,113040.0,113030.0,0.09557297]
[1760487519370,0.51692852,113040.0,113030.0,0.27251714]
[1760487519589,0.51692852,113040.0,113030.0,0.09557297]
[1760487522862,5.1220238,113040.0,113030.0,0.09557297]
[1760487524025,5.12286898,113040.0,113030.0,0.09557297]
[1760487524451,5.12286493,113040.0,113030.0,0.09557297]
[1760487527188,5.13673992,113040.0,113030.0,0.09557297]
[1760487528575,0.54816192,113040.0,113030.0,0.09557297]
[1760487528974,5.0957953,113040.0,113030.0,0.09557297]
[1760487529968,0.5072173,113040.0,113030.0,0.09557297]
[1760487530172,5.0957953,113040.0,113030.0,0.09557297]
[1760487530591,0.5072173,113040.0,113030.0,0.09557297]
[1760487530798,5.0957953,113040.0,113030.0,0.09557297]
[1760487530976,5.0957953,113040.0,113030.0,0.10513027]
[1760487531170,5.08192031,113040.0,113030.0,0.10513027]
[1760487532020,0.49334231,113040.0,113030.0,0.09557297]
[1760487532272,5.08192612,113040.0,113030.0,0.09557297]
[1760487532650,0.49334812,113040.0,113030.0,0.09557297]
[1760487532849,5.08192612,113040.0,113030.0,0.09557297]
[1760487533115,0.49334812,113040.0,113030.0,0.09557297]
[1760487533339,5.08192612,113040.0,113030.0,0.09557297]
[1760487533554,5.09580128,113040.0,113030.0,0.09557297]
[1760487534171,5.59580128,113040.0,113030.0,0.09557297]
[1760487535561,5.5959561,113040.0,113030.0,0.09557297]
[1760487536166,1.00722328,113040.0,113030.0,0.09557297]
[1760487536366,5.59579695,113040.0,113030.0,0.10513027]
[1760487536564,5.59579695,113040.0,113030.0,0.09557297]
[1760487537224,1.00721895,113040.0,113030.0,0.09557297]
[1760487537646,5.59579695,113040.0,113030.0,0.09557297]
[1760487538253,5.6039772,113040.0,113030.0,0.09557297]
[1760487538671,1.0153992,113040.0,113030.0,0.09557297]
[1760487539094,5.6039772,113040.0,113030.0,0.09557297]
[1760487539720,1.0153992,113040.0,113030.0,0.09557297]
[1760487539965,5.6039772,113040.0,113030.0,0.09557297]
[1760487540384,5.59010204,113040.0,113030.0,0.09557297]
[1760487541179,5.59025686,113040.0,113030.0,0.09557297]
[1760487541977,1.00167886,113040.0,113030.0,0.09557297]
[1760487542122,5.59025686,113040.0,113030.0,0.09557297]
[1760487542584,1.00167886,113040.0,113030.0,0.09557297]
[1760487543001,5.59025686,113040.0,113030.0,0.09557297]
[1760487543197,1.00167886,113040.0,113030.0,0.09557297]
[1760487543521,5.60413217,113040.0,113030.0,0.09557297]
[1760487543759,1.01555417,113040.0,113030.0,0.09557297]
[1760487544060,5.60397735,113040.0,113030.0,0.09557297]
[1760487544262,5.60397735,113040.0,113030.0,0.10513027]
[1760487544572,1.01539935,113040.0,113030.0,0.09557297]
[1760487545024,0.99904984,113040.0,113030.0,0.09557297]
[1760487545220,5.58762784,113040.0,113030.0,0.09557297]
[1760487545428,5.59582194,113040.0,113030.0,0.09557297]
[1760487545837,1.00724394,113040.0,113030.0,0.09557297]
[1760487546036,0.99085921,113040.0,113030.0,0.09557297]
[1760487546242,5.59831823,113040.0,113030.0,0.09557297]
[1760487546458,1.034324,113040.0,113030.0,0.09557297]
[1760487546612,5.62305682,113040.0,113030.0,0.09557297]
[1760487546965,1.00989505,113040.0,113030.0,0.09557297]
[1760487547265,5.59847305,113040.0,113030.0,0.09557297]
[1760487547488,1.01809092,113040.0,113030.0,0.09557297]
[1760487547690,5.62306067,113040.0,113030.0,0.09557297]
[1760487548309,5.62306468,113040.0,113030.0,0.09557297]
[1760487548491,1.03448668,113040.0,113030.0,0.10513027]
[1760487548717,5.62306468,113040.0,113030.0,0.10513027]
[1760487548996,5.62290986,113040.0,113030.0,0.10513027]
[1760487549699,5.62290986,113040.0,113030.0,0.09557297]
[1760487550274,5.60903455,113040.0,113030.0,0.09557297]
[1760487552124,1.05663883,113040.0,113030.0,0.09557297]
[1760487552320,5.64521683,113040.0,113030.0,0.09557297]
[1760487552748,1.05663883,113040.0,113030.0,0.09557297]
[1760487552973,5.64521683,113040.0,113030.0,0.09557297]
[1760487553330,1.05663883,113040.0,113030.0,0.09557297]
[1760487553534,5.64521683,113040.0,113030.0,0.09557297]
[1760487553921,5.64537165,113040.0,113030.0,0.09557297]
[1760487554719,1.05679365,113040.0,113030.0,0.09557297]
[1760487554940,5.64537165,113040.0,113030.0,0.10513027]
[1760487555343,1.05679365,113040.0,113030.0,0.10513027]
[1760487555549,5.64537165,113040.0,113030.0,0.10513027]
[1760487555966,1.05679365,113040.0,113030.0,0.10513027]
[1760487556391,5.64537165,113040.0,113030.0,0.10513027]
[1760487557532,5.64537165,113040.0,113030.0,0.09557297]
[1760487558392,5.64521683,113040.0,113030.0,0.09557297]
[1760487559662,1.05663883,113040.0,113030.0,0.09557297]
[1760487560013,5.64521683,113040.0,113030.0,0.09557297]
[1760487561461,1.05663883,113040.0,113030.0,0.09557297]
[1760487561787,5.64521683,113040.0,113030.0,0.10513027]
[1760487562110,1.05663883,113040.0,113030.0,0.10513027]
[1760487562309,5.64521683,113040.0,113030.0,0.10513027]
[1760487562794,5.59015353,113040.0,113030.0,0.10513027]
[1760487563355,5.58195766,113040.0,113030.0,0.10513027]
[1760487563991,5.58211248,113040.0,113030.0,0.10513027]
[1760487565108,5.60873004,113040.0,113030.0,0.10513027]
[1760487571777,5.60857522,113040.0,113030.0,0.10513027]
[1760487571987,1.01999722,113040.0,113030.0,0.10513027]
[1760487572418,0.52761756,113040.0,113030.0,0.28207444]
[1760487572656,0.841,113040.0,113030.0,0.28207444]
[1760487573330,1.01692852,113040.0,113030.0,0.10513027]
[1760487573561,5.62290164,113040.0,113030.0,0.10513027]
[1760487574037,5.62190164,113040.0,113030.0,0.10513027]
[1760487574256,5.45519492,113040.0,113030.0,0.28207444]
[1760487574468,0.84,113040.0,113030.0,0.28207444]
[1760487574903,1.03080237,113040.0,113030.0,0.28207444]
[1760487575878,1.03180237,113040.0,113030.0,0.28207444]
[1760487578223,5.62038037,113040.0,113030.0,0.09557297]
[1760487578439,5.64699863,113040.0,113030.0,0.09557297]
[1760487578656,5.6633866,113040.0,113030.0,0.09557297]
[1760487579081,5.64699863,113040.0,113030.0,0.09557297]
[1760487579284,5.66338686,113040.0,113030.0,0.09557297]
[1760487584223,5.66354168,113040.0,113030.0,0.09557297]
[1760487585951,5.66338686,113040.0,113030.0,0.09557297]
[1760487588656,5.66354168,113040.0,113030.0,0.09557297]
[1760487589300,5.16354168,113040.0,113030.0,0.09557297]
[1760487589597,0.57496368,113040.0,113030.0,0.09557297]
[1760487589984,5.16354168,113040.0,113030.0,0.09557297]
[1760487590572,0.57496368,113040.0,113030.0,0.09557297]
[1760487590758,5.16354168,113040.0,113030.0,0.09557297]
[1760487591374,5.19972396,113040.0,113030.0,0.09557297]
[1760487591941,0.61114596,113040.0,113030.0,0.09557297]
[1760487592136,5.19972396,113040.0,113030.0,0.10513027]
[1760487592581,5.20792335,113040.0,113030.0,0.10513027]
[1760487592914,5.20792335,113040.0,113030.0,0.09557297]
[1760487593258,5.19972396,113040.0,113030.0,0.09557297]
[1760487593698,0.61114596,113040.0,113030.0,0.09557297]
[1760487593869,0.61934507,113040.0,113030.0,0.09557297]
[1760487594088,5.20792307,113040.0,113030.0,0.09557297]
[1760487594291,5.19404922,113040.0,113030.0,0.09557297]
[1760487595708,5.19304922,113040.0,113030.0,0.09557297]
[1760487596130,5.19304922,113040.0,113030.0,0.10513027]
[1760487596364,0.6043164,113040.0,113030.0,0.10513027]
[1760487596562,5.18469529,113040.0,113030.0,0.10513027]
[1760487596985,5.14951301,113040.0,113030.0,0.10513027]
[1760487597168,5.16338779,113040.0,113030.0,0.10513027]
[1760487598073,5.16338779,113040.0,113030.0,0.09557297]
[1760487598676,0.57480979,113040.0,113030.0,0.09557297]
[1760487598878,5.16338779,113040.0,113030.0,0.09557297]
[1760487599445,0.57480979,113040.0,113030.0,0.09557297]
[1760487599642,5.16338779,113040.0,113030.0,0.09557297]
[1760487600098,0.57480979,113040.0,113030.0,0.09557297]
[1760487600274,5.16338779,113040.0,113030.0,0.09557297]
[1760487602382,5.16338779,113040.0,113030.0,0.27251714]
[1760487602736,5.14699956,113040.0,113030.0,0.09557297]
[1760487602910,5.16339488,113040.0,113030.0,0.09557297]
[1760487603115,4.98646636,113040.0,113030.0,0.27251714]
[1760487603739,5.16339488,113040.0,113030.0,0.27251714]
[1760487603943,5.16239488,113040.0,113030.0,0.27251714]
[1760487604132,5.16339488,113040.0,113030.0,0.27251714]
[1760487604758,5.16239488,113040.0,113030.0,0.27251714]
[1760487605075,4.98646636,113040.0,113030.0,0.27251714]
[1760487605457,4.97007104,113040.0,113030.0,0.27251714]
[1760487605588,4.94345278,113040.0,113030.0,0.27251714]
[1760487606431,5.1203813,113040.0,113030.0,0.27251714]
[1760487607136,0.35487478,113040.0,113030.0,0.27251714]
[1760487607297,0.341,113040.0,113030.0,0.27251714]
[1760487607704,0.51792852,113040.0,113030.0,0.27251714]
[1760487607917,0.58968062,113040.0,113030.0,0.09557297]
[1760487608261,5.16744579,113040.0,113030.0,0.09557297]
[1760487608464,5.19406771,113040.0,113030.0,0.09557297]
[1760487608598,5.19391289,113040.0,113030.0,0.09557297]
[1760487609187,5.19291289,113040.0,113030.0,0.09557297]
[1760487609605,5.19391289,113040.0,113030.0,0.09557297]
[1760487610218,5.20778836,113040.0,113030.0,0.09557297]
[1760487610418,0.61921036,113040.0,113030.0,0.09557297]
[1760487610666,5.20778836,113040.0,113030.0,0.09557297]
[1760487612381,0.61921036,113040.0,113030.0,0.09557297]
[1760487612586,5.20778836,113040.0,113030.0,0.09557297]
[1760487612990,0.61921036,113040.0,113030.0,0.09557297]
[1760487613195,5.20778836,113040.0,113030.0,0.09557297]
[1760487613619,5.19391289,113040.0,113030.0,0.09557297]
[1760487613762,0.64236994,113040.0,113030.0,0.09557297]
[1760487613969,5.19391289,113040.0,113030.0,0.09557297]
[1760487614169,5.20778819,113040.0,113030.0,0.09557297]
[1760487615618,0.61921019,113040.0,113030.0,0.09557297]
[1760487615815,5.20778819,113040.0,113030.0,0.09557297]
[1760487616583,0.61921019,113040.0,113030.0,0.09557297]
[1760487616924,5.20778819,113040.0,113030.0,0.09557297]
[1760487617732,0.61921019,113040.0,113030.0,0.09557297]
[1760487617932,5.20778819,113040.0,113030.0,0.09557297]
[1760487619372,0.61921019,113040.0,113030.0,0.09557297]
[1760487619752,5.20778819,113040.0,113030.0,0.09557297]
[1760487619942,0.61921019,113040.0,113030.0,0.09557297]
[1760487620458,5.20778819,113040.0,113030.0,0.09557297]
[1760487620994,0.68470801,113040.0,113030.0,0.09557297]
[1760487621195,5.24868384,113040.0,113030.0,0.09557297]
[1760487621550,5.27328694,113040.0,113030.0,0.09557297]
[1760487622520,0.68470894,113040.0,113030.0,0.09557297]
[1760487622724,5.27328694,113040.0,113030.0,0.09557297]
[1760487623323,0.68470894,113040.0,113030.0,0.09557297]
[1760487623541,5.27328694,113040.0,113030.0,0.09557297]
[1760487623747,0.68470894,113040.0,113030.0,0.09557297]
[1760487624151,5.27328694,113040.0,113030.0,0.09557297]
[1760487624370,4.93328694,113040.0,113030.0,0.09557297]
[1760487624569,0.34470894,113040.0,113030.0,0.09557297]
[1760487624770,4.93328694,113040.0,113030.0,0.09557297]
[1760487625186,4.93328694,113040.0,113030.0,0.10513027]
[1760487625387,0.34470894,113040.0,113030.0,0.10513027]
[1760487625546,4.93328694,113040.0,113030.0,0.10513027]
[1760487626246,0.34470894,113040.0,113030.0,0.10513027]
[1760487626488,5.27328694,113040.0,113030.0,0.10513027]
[1760487626902,0.68470894,113040.0,113030.0,0.10513027]
[1760487627104,5.27328694,113040.0,113030.0,0.10513027]
[1760487627357,5.27328694,113040.0,113030.0,0.09557297]
[1760487627943,0.68470894,113040.0,113030.0,0.09557297]
[1760487628147,5.27328694,113040.0,113030.0,0.09557297]
[1760487628848,0.68470894,113040.0,113030.0,0.09557297]
[1760487629059,5.27328694,113040.0,113030.0,0.09557297]
[1760487629284,0.68470894,113040.0,113030.0,0.09557297]
[1760487629642,5.27328694,113040.0,113030.0,0.09557297]
[1760487629851,5.25941164,113040.0,113030.0,0.09557297]
[1760487630281,0.67083364,113040.0,113030.0,0.09557297]
[1760487630477,5.25941164,113040.0,113030.0,0.09557297]
[1760487630679,0.67083364,113040.0,113030.0,0.09557297]
[1760487630901,5.25941164,113040.0,113030.0,0.09557297]
[1760487631611,0.67083364,113040.0,113030.0,0.09557297]
[1760487631812,5.25941164,113040.0,113030.0,0.09557297]
[1760487633270,5.27328737,113040.0,113030.0,0.09557297]
[1760487634134,0.67083364,113040.0,113030.0,0.09557297]
[1760487634534,5.27830358,113040.0,113030.0,0.09557297]
[1760487634702,5.22322936,113040.0,113030.0,0.09557297]
[1760487635771,5.24212248,113040.0,113030.0,0.09557297]
[1760487636950,0.65354448,113040.0,113030.0,0.09557297]
[1760487637161,5.25599843,113040.0,113030.0,0.09557297]
[1760487637805,0.66742043,113040.0,113030.0,0.09557297]
[1760487638018,5.25599843,113040.0,113030.0,0.09557297]
[1760487640686,5.29218071,113040.0,113030.0,0.09557297]
[1760487641438,0.70360271,113040.0,113030.0,0.09557297]
[1760487641638,5.29218071,113040.0,113030.0,0.09557297]
[1760487642576,0.70360271,113040.0,113030.0,0.09557297]
[1760487642776,5.29218071,113040.0,113030.0,0.09557297]
[1760487643178,5.32862399,113040.0,113030.0,0.09557297]
[1760487643591,5.29218071,113040.0,113030.0,0.09557297]
[1760487645024,0.70360271,113040.0,113030.0,0.09557297]
[1760487645451,5.25599843,113040.0,113030.0,0.09557297]
[1760487645658,5.19050061,113040.0,113030.0,0.09557297]
[1760487645865,4.83160749,113040.0,113030.0,0.09557297]
[1760487646072,4.81773154,113040.0,113030.0,0.09557297]
[1760487646716,5.1495305,113040.0,113030.0,0.09557297]
[1760487647267,5.13312844,113040.0,113030.0,0.09557297]
[1760487651544,5.1495243,113040.0,113030.0,0.09557297]
[1760487651744,0.5609463,113040.0,113030.0,0.09557297]
[1760487651963,5.1495243,113040.0,113030.0,0.09557297]
[1760487652344,0.5609463,113040.0,113030.0,0.09557297]
[1760487652544,5.14952416,113040.0,113030.0,0.09557297]
[1760487655599,0.56094616,113040.0,113030.0,0.09557297]
[1760487655809,5.14952416,113040.0,113030.0,0.09557297]
[1760487656176,5.14952341,113040.0,113030.0,0.09557297]
[1760487656412,5.13312844,113040.0,113030.0,0.09557297]
[1760487657032,5.13312844,113040.0,113030.0,0.27251714]
[1760487658089,5.13312844,113040.0,113030.0,0.09557297]
[1760487658298,5.13312844,113040.0,113030.0,0.27251714]
[1760487658911,5.13312844,113040.0,113030.0,0.09557297]
[1760487659441,5.13212844,113040.0,113030.0,0.09557297]
[1760487659906,5.13312844,113040.0,113030.0,0.09557297]
[1760487661791,0.54455044,113040.0,113030.0,0.27251714]
[1760487662204,0.54455044,113040.0,113030.0,0.09557297]
[1760487664133,0.54455044,113040.0,113030.0,0.27251714]
[1760487664481,0.54455044,113040.0,113030.0,0.09557297]
[1760487670884,0.54455044,113040.0,113030.0,0.27251714]
[1760487671320,0.54455044,113040.0,113030.0,0.09557297]
[1760487671519,5.13312844,113040.0,113030.0,0.09557297]
[1760487673262,5.14954162,113040.0,113030.0,0.09557297]
[1760487675103,5.14954674,113040.0,113030.0,0.09557297]
[1760487676185,5.14955526,113040.0,113030.0,0.09557297]
[1760487679981,4.97262674,113040.0,113030.0,0.27251714]
[1760487680181,0.001,113040.0,113030.0,0.27251714]
[1760487680835,0.341,113040.0,113030.0,0.27251714]
[1760487681700,0.34,113040.0,113030.0,0.27251714]
[1760487683045,5.08862788,113050.0,113040.0,0.17692852]
[1760487683264,4.58862788,113050.0,113040.0,0.19462137]
[1760487683695,4.988e-05,113050.0,113040.0,0.19462137]
[1760487684257,0.00104988,113050.0,113040.0,0.19462137]
[1760487685663,0.02766215,113050.0,113040.0,0.19462137]
[1760487686514,0.02666215,113050.0,113040.0,0.19462137]
[1760487687027,4.988e-05,113050.0,113040.0,0.19462137]
[1760487689786,4.988e-05,113050.0,113040.0,0.17692852]
[1760487690790,4.988e-05,113050.0,113040.0,0.19462137]
[1760487693873,0.51696275,113050.0,113040.0,0.19462137]
[1760487694287,0.5435765,113050.0,113040.0,0.19462137]
[1760487694506,0.36666363,113050.0,113040.0,0.19462137]
[1760487695125,0.36666363,113050.0,113040.0,0.17692852]
[1760487695350,0.36666363,113050.0,113040.0,0.19462137]
[1760487695814,0.5435765,113050.0,113040.0,0.19462137]
[1760487696241,0.5445765,113050.0,113040.0,0.19462137]
[1760487696823,5.5435765,113050.0,113040.0,0.01769285]
[1760487697152,0.34,113040.0,113030.0,0.27251714]
[1760487697884,0.36661375,113040.0,113030.0,0.27251714]
[1760487698095,0.02661375,113040.0,113030.0,0.27251714]
[1760487698308,0.36661375,113040.0,113030.0,0.27251714]
[1760487698709,0.54354227,113040.0,113030.0,0.27251714]
[1760487699686,0.36661375,113040.0,113030.0,0.27251714]
[1760487700894,0.54454227,113040.0,113030.0,0.27251714]
[1760487701096,0.36761375,113040.0,113030.0,0.27251714]
[1760487703751,0.54454227,113040.0,113030.0,0.27251714]
[1760487703961,0.55841616,113040.0,113030.0,0.27251714]
[1760487705007,0.38148764,113040.0,113030.0,0.27251714]
[1760487705421,0.55841616,113040.0,113030.0,0.27251714]
[1760487709269,0.55841616,113040.0,113030.0,0.09557297]
[1760487709485,0.55841616,113040.0,113030.0,0.27251714]
[1760487709832,5.55841616,113040.0,113030.0,0.27251714]
[1760487710245,5.55841616,113040.0,113030.0,0.09557297]
[1760487711165,5.55841616,113040.0,113030.0,0.27251714]
[1760487711568,5.55841616,113040.0,113030.0,0.09557297]
[1760487711796,5.55857097,113040.0,113030.0,0.09557297]
[1760487712974,5.55757097,113040.0,113030.0,0.09557297]
[1760487713340,5.55857097,113040.0,113030.0,0.09557297]
[1760487714456,0.55957097,113040.0,113030.0,0.09557297]
[1760487714649,5.57595532,113040.0,113030.0,0.09557297]
[1760487714849,5.57580051,113040.0,113030.0,0.09557297]
[1760487715093,5.57580051,113040.0,113030.0,0.10513027]
[1760487715306,0.02861375,113040.0,113030.0,0.28207444]
[1760487715509,0.36861375,113040.0,113030.0,0.28207444]
[1760487715902,0.54554227,113040.0,113030.0,0.10513027]
[1760487716085,0.54554227,113040.0,113030.0,0.27251714]
[1760487716280,5.54454227,113040.0,113030.0,0.09557297]
[1760487716488,5.54554227,113040.0,113030.0,0.09557297]
[1760487716658,5.55941689,113040.0,113030.0,0.09557297]
[1760487717327,5.55841689,113040.0,113030.0,0.09557297]
[1760487718793,0.55841689,113040.0,113030.0,0.09557297]
[1760487718996,0.32533748,113040.0,113030.0,0.09557297]
[1760487719194,5.20819025,113040.0,113030.0,0.09557297]
[1760487719393,5.23480958,113040.0,113030.0,0.09557297]
[1760487720360,0.23480958,113040.0,113030.0,0.09557297]
[1760487720570,5.23480958,113040.0,113030.0,0.09557297]
[1760487720790,5.21842247,113040.0,113030.0,0.09557297]
[1760487720995,5.54454785,113040.0,113030.0,0.09557297]
[1760487721429,5.56094112,113040.0,113030.0,0.09557297]
[1760487721836,5.55994112,113040.0,113030.0,0.09557297]
[1760487722296,5.56194112,113040.0,113030.0,0.09557297]
[1760487722501,0.56194112,113040.0,113030.0,0.09557297]
[1760487722661,5.56194112,113040.0,113030.0,0.09557297]
[1760487723469,5.56194112,113040.0,113030.0,0.27251714]
[1760487723470,5.3850126,113040.0,113030.0,0.27251714]
[1760487723671,0.002,113040.0,113030.0,0.27251714]
[1760487724175,0.342,113040.0,113030.0,0.27251714]
[1760487724395,0.341,113040.0,113030.0,0.27251714]
[1760487724568,0.69083736,113050.0,113030.0,0.27251714]
[1760487724755,5.17692852,113040.0,113030.0,0.27251714]
[1760487724959,5.51692852,113040.0,113030.0,0.09557297]
[1760487725355,5.51708077,113040.0,113030.0,0.09557297]
[1760487725600,5.53348202,113040.0,113030.0,0.09557297]
[1760487725864,5.56010135,113040.0,113030.0,0.09557297]
[1760487726390,0.56010135,113040.0,113030.0,0.09557297]
[1760487726592,5.56010135,113040.0,113030.0,0.09557297]
[1760487727450,5.56210135,113040.0,113030.0,0.09557297]
[1760487727979,0.56210135,113040.0,113030.0,0.09557297]
[1760487728138,5.56210135,113040.0,113030.0,0.09557297]
[1760487729603,5.5621056,113040.0,113030.0,0.09557297]
[1760487730048,0.5621056,113040.0,113030.0,0.09557297]
[1760487730253,5.5621056,113040.0,113030.0,0.09557297]
[1760487730618,5.56193792,113040.0,113030.0,0.09557297]
[1760487732286,0.56193792,113040.0,113030.0,0.09557297]
[1760487732454,5.56193792,113040.0,113030.0,0.09557297]
[1760487733482,5.57013886,113040.0,113030.0,0.09557297]
[1760487733844,5.56998661,113040.0,113030.0,0.09557297]
[1760487734574,0.56998661,113040.0,113030.0,0.09557297]
[1760487734773,5.56998661,113040.0,113030.0,0.09557297]
[1760487736004,5.56178405,113040.0,113030.0,0.09557297]
[1760487739324,5.54538017,113040.0,113030.0,0.09557297]
[1760487739540,5.56178603,113040.0,113030.0,0.09557297]
[1760487740136,0.56178603,113040.0,113030.0,0.09557297]
[1760487740338,0.56998931,113040.0,113030.0,0.09557297]
[1760487740809,5.56998931,113040.0,113030.0,0.09557297]
[1760487741772,5.65967139,113040.0,113030.0,0.09557297]
[1760487741976,5.56998931,113040.0,113030.0,0.09557297]
[1760487742451,5.56999042,113040.0,113030.0,0.09557297]
[1760487742660,0.56999042,113040.0,113030.0,0.09557297]
[1760487742864,5.56999042,113040.0,113030.0,0.09557297]
[1760487743491,0.56999042,113040.0,113030.0,0.09557297]
[1760487743693,5.56999042,113040.0,113030.0,0.09557297]
[1760487744275,0.56999042,113040.0,113030.0,0.09557297]
[1760487744476,5.56999042,113040.0,113030.0,0.09557297]
[1760487745058,5.63518931,113040.0,113030.0,0.09557297]
[1760487745463,5.60856998,113040.0,113030.0,0.09557297]
[1760487747718,0.60856998,113040.0,113030.0,0.09557297]
[1760487747931,5.60856998,113040.0,113030.0,0.09557297]
[1760487748704,0.60856998,113040.0,113030.0,0.09557297]
[1760487748844,5.60856998,113040.0,113030.0,0.09557297]
[1760487749402,0.54337109,113040.0,113030.0,0.09557297]
[1760487749640,0.57955337,113040.0,113030.0,0.09557297]
[1760487749852,5.64730973,113040.0,113030.0,0.09557297]
[1760487750813,0.64730973,113040.0,113030.0,0.09557297]
[1760487751021,5.66621011,113040.0,113030.0,0.09557297]
[1760487751239,5.6928326,113040.0,113030.0,0.09557297]
[1760487751680,0.6928326,113040.0,113030.0,0.09557297]
[1760487751882,6.1928326,113040.0,113030.0,0.09557297]
[1760487752427,1.1928326,113040.0,113030.0,0.09557297]
[1760487752632,6.1928326,113040.0,113030.0,0.09557297]
[1760487753653,1.1928326,113040.0,113030.0,0.09557297]
[1760487753861,6.1928326,113040.0,113030.0,0.09557297]
[1760487754074,6.1928312,113040.0,113030.0,0.09557297]
[1760487754481,1.1928312,113040.0,113030.0,0.09557297]
[1760487754767,6.1928312,113040.0,113030.0,0.09557297]
[1760487755586,1.1928312,113040.0,113030.0,0.09557297]
[1760487755967,6.1928312,113040.0,113030.0,0.09557297]
[1760487756173,1.1928312,113040.0,113030.0,0.09557297]
[1760487756616,6.1928312,113040.0,113030.0,0.09557297]
[1760487756826,1.1928312,113040.0,113030.0,0.09557297]
[1760487757237,6.1928312,113040.0,113030.0,0.09557297]
[1760487758403,1.1928312,113040.0,113030.0,0.09557297]
[1760487758607,6.1928312,113040.0,113030.0,0.09557297]
[1760487758813,6.17642764,113040.0,113030.0,0.09557297]
[1760487759035,6.19283822,113040.0,113030.0,0.09557297]
[1760487759620,1.19283822,113040.0,113030.0,0.09557297]
[1760487759836,6.19283822,113040.0,113030.0,0.09557297]
[1760487760051,6.1928378,113040.0,113030.0,0.09557297]
[1760487760646,1.1928378,113040.0,113030.0,0.09557297]
[1760487761006,6.1928378,113040.0,113030.0,0.09557297]
[1760487764318,1.1928378,113040.0,113030.0,0.09557297]
[1760487764600,6.1928378,113040.0,113030.0,0.09557297]
[1760487766043,1.1928378,113040.0,113030.0,0.09557297]
[1760487766245,6.1928378,113040.0,113030.0,0.09557297]
[1760487766379,6.19283814,113040.0,113030.0,0.09557297]
[1760487766575,1.19283814,113040.0,113030.0,0.09557297]
[1760487766876,6.19283814,113040.0,113030.0,0.09557297]
[1760487767267,1.19283814,113040.0,113030.0,0.09557297]
[1760487767480,6.19283814,113040.0,113030.0,0.09557297]
[1760487767684,6.24792113,113040.0,113030.0,0.09557297]
[1760487767896,6.24807593,113040.0,113030.0,0.09557297]
[1760487768095,6.19283814,113040.0,113030.0,0.09557297]
[1760487769327,1.15665586,113040.0,113030.0,0.09557297]
[1760487769506,6.13003337,113040.0,113030.0,0.09557297]
[1760487769728,6.04337663,113040.0,113030.0,0.09557297]
[1760487770337,1.04337663,113040.0,113030.0,0.09557297]